Workbook

Sheet Sheet1
E1: 120 | F1: 120 | G1: =E1-210 -> -90 | H1: =F1-210 -> -90 | I1: 210 | J1: 210
A2: L | B2: m | C2: 0.35 | D2: 0.35 | E2: =C2+E1/1000 -> 0.47 | F2: =D2+F1/1000 -> 0.47 | G2: =C2+G1/1000 -> 0.26 | H2: =D2+H1/1000 -> 0.26 | I2: =C2+I1/1000 -> 0.56 | J2: =D2+J1/1000 -> 0.56
A3: D | B3: mm | C3: 70 | D3: 15 | E3: 70 | F3: 15 | G3: 70 | H3: 15 | I3: 70 | J3: 15
A4: e | B4: mm | C4: 4 | D4: =D3/2 -> 7.5 | E4: 4 | F4: =F3/2 -> 7.5 | G4: 4 | H4: =H3/2 -> 7.5 | I4: 4 | J4: 7.5
A5: S | C5: =PI()*((C3/2000)^2-((C3-2*C4)/2000)^2) -> 0.0008293804605 | D5: =PI()*((D3/2000)^2-((D3-2*D4)/2000)^2) -> 0.0001767145868 | E5: =PI()*((E3/2000)^2-((E3-2*E4)/2000)^2) -> 0.0008293804605 | F5: 0.0001767145868 | G5: 0.0008293804605 | H5: 0.0001767145868 | I5: =PI()*((I3/2000)^2-((I3-2*I4)/2000)^2) -> 0.0008293804605 | J5: 0.0001767145868
A6: Tcold | C6: 2 | D6: 2 | E6: 2 | F6: 2 | G6: 2 | H6: 2 | I6: 2 | J6: 2
A7: Twarm | C7: 300 | D7: 300 | E7: 300 | F7: 300 | G7: 300 | H7: 300 | I7: 300 | J7: 300
C9: =[1]!Conduction_cyl_304L(C2,C3,C4,C6,C7) -> -7.190348841 | D9: =[1]!Conduction_cyl_304L(D2,D3,D4,D6,D7) -> -1.532034554 | E9: =[1]!Conduction_cyl_304L(E2,E3,E4,E6,E7) -> -5.3545153 | F9: =[1]!Conduction_cyl_304L(F2,F3,F4,F6,F7) -> -1.14087684 | G9: =[1]!Conduction_cyl_304L(G2,G3,G4,G6,G7) -> -9.679316282 | H9: =[1]!Conduction_cyl_304L(H2,H3,H4,H6,H7) -> -2.062354321 | I9: =[1]!Conduction_cyl_304L(I2,I3,I4,I6,I7) -> -4.493967906 | J9: =[1]!Conduction_cyl_304L(J2,J3,J4,J6,J7) -> -0.9575215709
D11: =C9+D9 -> -8.722383395 | F11: =E9+F9 -> -6.49539214 | H11: =G9+H9 -> -11.7416706 | J11: =I9+J9 -> -5.451489477
F12: =(-D11+F11)/D11 -> -0.2553191203 | H12: =(-D11+H11)/F11 -> 0.4648352468 | J12: =(-F11+J11)/H11 -> -0.08890580381
F14: =(-D2+F2)/D2 -> 0.3428571429 | H14: =(-D2+H2)/D2 -> -0.2571428571 | J14: =(-F2+J2)/F2 -> 0.1914893617
C16: =[1]!Conduction_S_L($C$2,C5,"304L",$C$6,C7) -> -7.190348934 | D16: =[1]!Conduction_S_L($C$2,D5,"304L",$D$6,D7) -> -1.532034562
C20: =0.002002 -> 0.002002 | D20: =4.253*10^-6 -> 4.253e-06

Sheet Sheet2
B6: No Collar | D6: Stem | G6: Collar at 1/3
D7: External | E7: internal | I7: internal | J7: =1/3 -> 0.3333333333 | K7: =1-J7 -> 0.6666666667
B8: L | C8: m | D8: 0.5 | E8: =D8 -> 0.5 | G8: L | H8: m | I8: 0.5 | J8: =J7*I8 -> 0.1666666667 | K8: =K7*I8 -> 0.3333333333
B9: D | C9: mm | D9: 70 | E9: 15 | G9: D | H9: mm | I9: 15 | J9: 70 | K9: 70
B10: e | C10: mm | D10: 4 | E10: =E9/2 -> 7.5 | G10: e | H10: mm | I10: 1900-01-07T12:00:00 | J10: 4 | K10: 4
B11: S | D11: =PI()*((D9/2000)^2-((D9-2*D10)/2000)^2) -> 0.0008293804605 | E11: =PI()*((E9/2000)^2-((E9-2*E10)/2000)^2) -> 0.0001767145868 | G11: S | I11: =PI()*((I9/2000)^2-((I9-2*I10)/2000)^2) -> 0.0001767145868 | J11: =PI()*((J9/2000)^2-((J9-2*J10)/2000)^2) -> 0.0008293804605 | K11: =PI()*((K9/2000)^2-((K9-2*K10)/2000)^2) -> 0.0008293804605
B12: Tcold | D12: 2 | E12: 2 | G12: Tcold | I12: 2 | J12: 55 | K12: 2
B13: Twarm | D13: 300 | E13: 300 | G13: Twarm | I13: 300 | J13: 300 | K13: 55
B15: Heat Losses | D15: =[1]!Conduction_cyl_304L(D8,D9,D10,D12,D13) -> -5.033244135 | E15: =[1]!Conduction_cyl_304L(E8,E9,E10,E12,E13) -> -1.072424176 | I15: =[1]!Conduction_cyl_304L(I8,I9,I10,I12,I13) -> -1.072424176 | J15: =[1]!Conduction_cyl_304L(J8,J9,J10,J12,J13) -> -14.24300779 | K15: =[1]!Conduction_cyl_304L(K8,K9,K10,K12,K13) -> -0.4224338883
B17: Total losses at 2K | E17: =D15+E15 -> -6.105668311 | G17: Losses at 55K | J17: =H15+J15 -> -14.24300779
G18: Losses at 2K | K18: =I15+K15 -> -1.494858065
B20: Heat Losses equivalent at 4.5K | E20: =E17*D25/D24 -> -13.85397835 | G20: Heat Losses equivalent at 4.5K | K20: =K18*$D$25/$D$24 + J17/$D$24*$D$23 -> -4.35807072
K21: =K20/E20 -> 0.3145717865
B23: Carnot 55K | D23: =(300-55)/55 -> 4.454545455
B24: Carnot 4.5K | D24: =(300-4.5)/4.5 -> 65.66666667
B25: carnot 2 K | D25: =(300-2)/2 -> 149
C36: Collar at 1/3
F37: 0.05 | G37: =F37+5% -> 0.1 | H37: =G37+5% -> 0.15 | I37: 0.2 | J37: 0.25 | K37: 0.3 | L37: 0.35 | M37: 0.4 | N37: 0.45 | O37: 0.5 | P37: 0.55 | Q37: 0.6 | R37: 0.65 | S37: 0.7 | T37: 0.75 | U37: 0.8 | V37: 0.85 | W37: 0.9 | X37: =W37+5% -> 0.95
C38: L | D38: m | E38: 0.5 | F38: =F37*$E$38 -> 0.025 | G38: =G37*$E$38 -> 0.05 | H38: =H37*$E$38 -> 0.075 | I38: =I37*$E$38 -> 0.1 | J38: =J37*$E$38 -> 0.125 | K38: =K37*$E$38 -> 0.15 | L38: =L37*$E$38 -> 0.175 | M38: =M37*$E$38 -> 0.2 | N38: =N37*$E$38 -> 0.225 | O38: =O37*$E$38 -> 0.25 | P38: =P37*$E$38 -> 0.275 | Q38: =Q37*$E$38 -> 0.3 | R38: =R37*$E$38 -> 0.325 | S38: =S37*$E$38 -> 0.35 | T38: =T37*$E$38 -> 0.375 | U38: =U37*$E$38 -> 0.4 | V38: =V37*$E$38 -> 0.425 | W38: =W37*$E$38 -> 0.45 | X38: 0.475
C39: D | D39: mm | E39: 15 | F39: 70 | G39: 70 | H39: 70 | I39: 70 | J39: 70 | K39: 70 | L39: 70 | M39: 70 | N39: 70 | O39: 70 | P39: 70 | Q39: 70 | R39: 70 | S39: 70 | T39: 70 | U39: 70 | V39: 70 | W39: 70 | X39: 70
C40: e | D40: mm | E40: 1900-01-07T12:00:00 | F40: 4 | G40: 4 | H40: 4 | I40: 4 | J40: 4 | K40: 4 | L40: 4 | M40: 4 | N40: 4 | O40: 4 | P40: 4 | Q40: 4 | R40: 4 | S40: 4 | T40: 4 | U40: 4 | V40: 4 | W40: 4 | X40: 4
C41: S | E41: =PI()*((E39/2000)^2-((E39-2*E40)/2000)^2) -> 0.0001767145868 | F41: =PI()*((F39/2000)^2-((F39-2*F40)/2000)^2) -> 0.0008293804605 | G41: =PI()*((G39/2000)^2-((G39-2*G40)/2000)^2) -> 0.0008293804605 | H41: =PI()*((H39/2000)^2-((H39-2*H40)/2000)^2) -> 0.0008293804605 | I41: =PI()*((I39/2000)^2-((I39-2*I40)/2000)^2) -> 0.0008293804605 | J41: =PI()*((J39/2000)^2-((J39-2*J40)/2000)^2) -> 0.0008293804605 | K41: =PI()*((K39/2000)^2-((K39-2*K40)/2000)^2) -> 0.0008293804605 | L41: =PI()*((L39/2000)^2-((L39-2*L40)/2000)^2) -> 0.0008293804605 | M41: =PI()*((M39/2000)^2-((M39-2*M40)/2000)^2) -> 0.0008293804605 | N41: =PI()*((N39/2000)^2-((N39-2*N40)/2000)^2) -> 0.0008293804605 | O41: =PI()*((O39/2000)^2-((O39-2*O40)/2000)^2) -> 0.0008293804605 | P41: =PI()*((P39/2000)^2-((P39-2*P40)/2000)^2) -> 0.0008293804605 | Q41: =PI()*((Q39/2000)^2-((Q39-2*Q40)/2000)^2) -> 0.0008293804605 | R41: =PI()*((R39/2000)^2-((R39-2*R40)/2000)^2) -> 0.0008293804605 | S41: =PI()*((S39/2000)^2-((S39-2*S40)/2000)^2) -> 0.0008293804605 | T41: =PI()*((T39/2000)^2-((T39-2*T40)/2000)^2) -> 0.0008293804605 | U41: =PI()*((U39/2000)^2-((U39-2*U40)/2000)^2) -> 0.0008293804605 | V41: =PI()*((V39/2000)^2-((V39-2*V40)/2000)^2) -> 0.0008293804605 | W41: =PI()*((W39/2000)^2-((W39-2*W40)/2000)^2) -> 0.0008293804605 | X41: 0.0008293804605
C42: Tcold | E42: 2 | F42: 55 | G42: 55 | H42: 55 | I42: 55 | J42: 55 | K42: 55 | L42: 55 | M42: 55 | N42: 55 | O42: 55 | P42: 55 | Q42: 55 | R42: 55 | S42: 55 | T42: 55 | U42: 55 | V42: 55 | W42: 55 | X42: 55
C43: Twarm | E43: 300 | F43: 300 | G43: 300 | H43: 300 | I43: 300 | J43: 300 | K43: 300 | L43: 300 | M43: 300 | N43: 300 | O43: 300 | P43: 300 | Q43: 300 | R43: 300 | S43: 300 | T43: 300 | U43: 300 | V43: 300 | W43: 300 | X43: 300
E45: =[1]!Conduction_cyl_304L(E38,E39,E40,E42,E43) -> -1.072424176 | F45: =[1]!Conduction_cyl_304L(F38,F39,F40,F42,F43) -> -94.95339233 | G45: =[1]!Conduction_cyl_304L(G38,G39,G40,G42,G43) -> -47.47669617 | H45: =[1]!Conduction_cyl_304L(H38,H39,H40,H42,H43) -> -31.65112881 | I45: =[1]!Conduction_cyl_304L(I38,I39,I40,I42,I43) -> -23.73834808 | J45: =[1]!Conduction_cyl_304L(J38,J39,J40,J42,J43) -> -18.99067776 | K45: =[1]!Conduction_cyl_304L(K38,K39,K40,K42,K43) -> -15.82556441 | L45: =[1]!Conduction_cyl_304L(L38,L39,L40,L42,L43) -> -13.56476997 | M45: =[1]!Conduction_cyl_304L(M38,M39,M40,M42,M43) -> -11.86917404 | N45: =[1]!Conduction_cyl_304L(N38,N39,N40,N42,N43) -> -10.55037714 | O45: =[1]!Conduction_cyl_304L(O38,O39,O40,O42,O43) -> -9.49533888 | P45: =[1]!Conduction_cyl_304L(P38,P39,P40,P42,P43) -> -8.63212643 | Q45: =[1]!Conduction_cyl_304L(Q38,Q39,Q40,Q42,Q43) -> -7.912782203 | R45: =[1]!Conduction_cyl_304L(R38,R39,R40,R42,R43) -> -7.304107207 | S45: =[1]!Conduction_cyl_304L(S38,S39,S40,S42,S43) -> -6.782384986 | T45: =[1]!Conduction_cyl_304L(T38,T39,T40,T42,T43) -> -6.330225763 | U45: =[1]!Conduction_cyl_304L(U38,U39,U40,U42,U43) -> -5.934587021 | V45: =[1]!Conduction_cyl_304L(V38,V39,V40,V42,V43) -> -5.585493483 | W45: =[1]!Conduction_cyl_304L(W38,W39,W40,W42,W43) -> -5.275188572 | X45: =[1]!Conduction_cyl_304L(X38,X39,X40,X42,X43) -> -4.997546916
F47: =[1]!Conduction_S_L($C$2,F36,"304L",$C$6,F38) -> 
C50: Heat Losses equivalent at 4.5K | F50: =1-F37 -> 0.95 | G50: =1-G37 -> 0.9 | H50: =1-H37 -> 0.85 | I50: 0.8 | J50: 0.75 | K50: 0.7 | L50: 0.65 | M50: 0.6 | N50: 0.55 | O50: 0.5 | P50: 0.45 | Q50: 0.4 | R50: 0.35 | S50: 0.3 | T50: 0.25 | U50: 0.2 | V50: 0.15 | W50: 0.1 | X50: 0.05
F51: =F50*$E$38 -> 0.475 | G51: =G50*$E$38 -> 0.45 | H51: =H50*$E$38 -> 0.425 | I51: =I50*$E$38 -> 0.4 | J51: =J50*$E$38 -> 0.375 | K51: =K50*$E$38 -> 0.35 | L51: =L50*$E$38 -> 0.325 | M51: =M50*$E$38 -> 0.3 | N51: =N50*$E$38 -> 0.275 | O51: =O50*$E$38 -> 0.25 | P51: =P50*$E$38 -> 0.225 | Q51: =Q50*$E$38 -> 0.2 | R51: =R50*$E$38 -> 0.175 | S51: =S50*$E$38 -> 0.15 | T51: =T50*$E$38 -> 0.125 | U51: =U50*$E$38 -> 0.1 | V51: =V50*$E$38 -> 0.075 | W51: =W50*$E$38 -> 0.05 | X51: 0.025
F52: 70 | G52: 70 | H52: 70 | I52: 70 | J52: 70 | K52: 70 | L52: 70 | M52: 70 | N52: 70 | O52: 70 | P52: 70 | Q52: 70 | R52: 70 | S52: 70 | T52: 70 | U52: 70 | V52: 70 | W52: 70 | X52: 70
F53: 4 | G53: 4 | H53: 4 | I53: 4 | J53: 4 | K53: 4 | L53: 4 | M53: 4 | N53: 4 | O53: 4 | P53: 4 | Q53: 4 | R53: 4 | S53: 4 | T53: 4 | U53: 4 | V53: 4 | W53: 4 | X53: 4
F54: =PI()*((F52/2000)^2-((F52-2*F53)/2000)^2) -> 0.0008293804605 | G54: =PI()*((G52/2000)^2-((G52-2*G53)/2000)^2) -> 0.0008293804605 | H54: =PI()*((H52/2000)^2-((H52-2*H53)/2000)^2) -> 0.0008293804605 | I54: =PI()*((I52/2000)^2-((I52-2*I53)/2000)^2) -> 0.0008293804605 | J54: =PI()*((J52/2000)^2-((J52-2*J53)/2000)^2) -> 0.0008293804605 | K54: =PI()*((K52/2000)^2-((K52-2*K53)/2000)^2) -> 0.0008293804605 | L54: =PI()*((L52/2000)^2-((L52-2*L53)/2000)^2) -> 0.0008293804605 | M54: =PI()*((M52/2000)^2-((M52-2*M53)/2000)^2) -> 0.0008293804605 | N54: =PI()*((N52/2000)^2-((N52-2*N53)/2000)^2) -> 0.0008293804605 | O54: =PI()*((O52/2000)^2-((O52-2*O53)/2000)^2) -> 0.0008293804605 | P54: =PI()*((P52/2000)^2-((P52-2*P53)/2000)^2) -> 0.0008293804605 | Q54: =PI()*((Q52/2000)^2-((Q52-2*Q53)/2000)^2) -> 0.0008293804605 | R54: =PI()*((R52/2000)^2-((R52-2*R53)/2000)^2) -> 0.0008293804605 | S54: =PI()*((S52/2000)^2-((S52-2*S53)/2000)^2) -> 0.0008293804605 | T54: =PI()*((T52/2000)^2-((T52-2*T53)/2000)^2) -> 0.0008293804605 | U54: =PI()*((U52/2000)^2-((U52-2*U53)/2000)^2) -> 0.0008293804605 | V54: =PI()*((V52/2000)^2-((V52-2*V53)/2000)^2) -> 0.0008293804605 | W54: =PI()*((W52/2000)^2-((W52-2*W53)/2000)^2) -> 0.0008293804605 | X54: 0.0008293804605
F55: 2 | G55: 2 | H55: 2 | I55: 2 | J55: 2 | K55: 2 | L55: 2 | M55: 2 | N55: 2 | O55: 2 | P55: 2 | Q55: 2 | R55: 2 | S55: 2 | T55: 2 | U55: 2 | V55: 2 | W55: 2 | X55: 2
F56: 55 | G56: 55 | H56: 55 | I56: 55 | J56: 55 | K56: 55 | L56: 55 | M56: 55 | N56: 55 | O56: 55 | P56: 55 | Q56: 55 | R56: 55 | S56: 55 | T56: 55 | U56: 55 | V56: 55 | W56: 55 | X56: 55
F58: =[1]!Conduction_cyl_304L(F51,F52,F53,F55,F56) -> -0.2964448531 | G58: =[1]!Conduction_cyl_304L(G51,G52,G53,G55,G56) -> -0.3129140211 | H58: =[1]!Conduction_cyl_304L(H51,H52,H53,H55,H56) -> -0.3313207105 | I58: =[1]!Conduction_cyl_304L(I51,I52,I53,I55,I56) -> -0.3520282665 | J58: =[1]!Conduction_cyl_304L(J51,J52,J53,J55,J56) -> -0.3754967943 | K58: =[1]!Conduction_cyl_304L(K51,K52,K53,K55,K56) -> -0.4023180081 | L58: =[1]!Conduction_cyl_304L(L51,L52,L53,L55,L56) -> -0.433265565 | M58: =[1]!Conduction_cyl_304L(M51,M52,M53,M55,M56) -> -0.4693709928 | N58: =[1]!Conduction_cyl_304L(N51,N52,N53,N55,N56) -> -0.5120411062 | O58: =[1]!Conduction_cyl_304L(O51,O52,O53,O55,O56) -> -0.5632452054 | P58: =[1]!Conduction_cyl_304L(P51,P52,P53,P55,P56) -> -0.6258280423 | Q58: =[1]!Conduction_cyl_304L(Q51,Q52,Q53,Q55,Q56) -> -0.704056533 | R58: =[1]!Conduction_cyl_304L(R51,R52,R53,R55,R56) -> -0.8046360163 | S58: =[1]!Conduction_cyl_304L(S51,S52,S53,S55,S56) -> -0.9387419857 | T58: =[1]!Conduction_cyl_304L(T51,T52,T53,T55,T56) -> -1.126490411 | U58: =[1]!Conduction_cyl_304L(U51,U52,U53,U55,U56) -> -1.408113066 | V58: =[1]!Conduction_cyl_304L(V51,V52,V53,V55,V56) -> -1.877483971 | W58: =[1]!Conduction_cyl_304L(W51,W52,W53,W55,W56) -> -2.816226132 | X58: =[1]!Conduction_cyl_304L(X51,X52,X53,X55,X56) -> -5.632452264
F60: =$E$45+F58 -> -1.36886903 | G60: =$E$45+G58 -> -1.385338198 | H60: =$E$45+H58 -> -1.403744887 | I60: -1.424452443 | J60: -1.447920971 | K60: -1.474742185 | L60: -1.505689741 | M60: -1.541795169 | N60: -1.584465283 | O60: -1.635669382 | P60: -1.698252219 | Q60: -1.776480709 | R60: -1.877060193 | S60: -2.011166162 | T60: -2.198914587 | U60: -2.480537242 | V60: -2.949908148 | W60: -3.888650308 | X60: -6.70487644
F63: =F60*$D$25/$D$24 + F45/$D$24*$D$23 -> -9.547243974 | G63: =G60*$D$25/$D$24 + G45/$D$24*$D$23 -> -6.363997348 | H63: =H60*$D$25/$D$24 + H45/$D$24*$D$23 -> -5.332224063 | I63: -4.842441085 | J63: -4.573630385 | K63: -4.419780937 | L63: -4.33663943 | M63: -4.303541962 | N63: -4.310900432 | O63: -4.355515074 | P63: -4.438961119 | Q63: -4.567667112 | R63: -4.754595629 | S63: -5.023495437 | T63: -5.41883074 | U63: -6.031004113 | V63: -7.072342365 | W63: -9.181331927 | X63: -15.55261507 | AD63: =2/3 -> 0.6666666667
F64: =F63/A50 -> 
F67: =F60+F45 -> -96.32226136 | G67: =G60+G45 -> -48.86203436 | H67: -33.0548737 | I67: -25.16280053 | J67: -20.43859873 | K67: -17.30030659 | L67: -15.07045971 | M67: -13.41096921 | N67: -12.13484243 | O67: -11.13100826 | P67: -10.33037865 | Q67: -9.689262913 | R67: -9.1811674 | S67: -8.793551148 | T67: -8.52914035 | U67: -8.415124263 | V67: -8.535401631 | W67: -9.163838881 | X67: -11.70242336

Sheet Sheet3
F4: 0.5 | G4: =1-F4 -> 0.5
B5: L | C5: m | D5: =(230+229+100+100+200)/1000 -> 0.859 | F5: =F4*D5 -> 0.4295 | G5: =G4*D5 -> 0.4295
B6: D | C6: mm | D6: 60.3 | F6: 70 | G6: 70
B7: e | C7: mm | D7: 2.77 | F7: 4 | G7: 4
B8: S | D8: =PI()*((D6/2000)^2-((D6-2*D7)/2000)^2) -> 0.0005006382363 | F8: =PI()*((F6/2000)^2-((F6-2*F7)/2000)^2) -> 0.0008293804605 | G8: =PI()*((G6/2000)^2-((G6-2*G7)/2000)^2) -> 0.0008293804605
B9: Tcold | D9: 2 | F9: 55 | G9: 2
B10: Twarm | D10: 300 | F10: 300 | G10: 55
D12: =[1]!Conduction_cyl_304L(D5,D6,D7,D9,D10) -> -1.768459199 | F12: =[1]!Conduction_cyl_304L(F5,F6,F7,F9,F10) -> -5.526972576 | G12: =[1]!Conduction_cyl_304L(G5,G6,G7,G9,G10) -> -0.3278493631
F14: =D13+F12 -> -5.526972576 | G14: =E13+G12 -> -0.3278493631
D19: =[1]!Conduction_S_L($D$5,D8,"304L",$D$9,D10) -> -1.768459151

Sheet Sheet4
D4: Beam Line | E4: A | F4: B | G4: C | H4: D | I4: E | J4: F
E5: 2 | F5: 2 | G5: 5 | H5: 8 | I5: 35 | J5: 55
C6: Heat Losses :
C8: VAT Valve | D8: 1.5 | J8: 15
C9: 2 "L-Shape" | D9: =2*0.5 -> 1 | J9: 12
